bitfinex/quotes_SOLUSD_20260102
["timestamp","ask_amount","ask_price","bid_price","bid_amount"]
[1767348557103,0.70320913,129.56,129.52,13.02201607]
[1767348557299,0.70320913,129.56,129.53,5.30120373]
[1767348557784,0.70320913,129.56,129.52,13.02201607]
[1767348558185,0.70320913,129.56,129.52,7.72081234]
[1767348558384,0.70320913,129.56,129.53,0.7]
[1767348560908,0.70320913,129.55,129.53,0.7]
[1767348561086,13.0204471,129.55,129.53,0.7]
[1767348561405,0.70320913,129.54,129.53,0.7]
[1767348566585,14.08,129.55,129.53,0.7]
[1767348567511,14.75908314,129.55,129.53,0.7]
[1767348567900,14.08,129.55,129.53,9.31830167]
[1767348568710,14.08,129.55,129.53,0.7]
[1767348569415,14.08,129.55,129.53,9.31830167]
[1767348569922,14.08,129.55,129.53,0.7]
[1767348570598,14.75908314,129.55,129.53,0.7]
[1767348572012,0.67908314,129.54,129.53,0.7]
[1767348572516,14.08,129.55,129.53,0.7]
[1767348573027,14.08,129.55,129.53,17.03841844]
[1767348573195,14.75908314,129.57,129.53,9.31830167]
[1767348573903,0.67908314,129.56,129.53,9.31830167]
[1767348574112,0.67908314,129.56,129.53,0.7]
[1767348578929,0.67908314,129.55,129.53,0.7]
[1767348579304,0.67908314,129.54,129.53,0.7]
[1767348580519,0.67908314,129.54,129.51,61.2]
[1767348580901,14.75908314,129.54,129.51,61.2]
[1767348581100,14.75908314,129.54,129.51,68.92140569]
[1767348583216,14.75908314,129.54,129.51,7.72140569]
[1767348587131,13.355,129.54,129.52,8.61830167]
[1767348587333,9.29738481,129.61,129.53,9.39032359]
[1767348587524,22.69830167,129.59,129.53,0.77202192]
[1767348587832,27.00212122,129.62,129.52,69.81830167]
[1767348587833,0.67908314,129.57,129.52,69.81830167]
[1767348588133,0.67908314,129.57,129.51,97.34721388]
[1767348588316,0.67908314,129.57,129.53,8.61830167]
[1767348588512,0.67908314,129.57,129.53,3.09312574]
[1767348588718,0.67908314,129.55,129.51,81.13681094]
[1767348589031,0.67908314,129.55,129.53,3.09312574]
[1767348589211,0.67908314,129.55,129.51,78.0436852]
[1767348589404,0.67908314,129.55,129.52,3.09312574]
[1767348589632,0.67908314,129.55,129.51,10.81453143]
[1767348589932,0.67908314,129.55,129.52,3.09312574]
[1767348590723,0.67908314,129.55,129.52,10.81383062]
[1767348590922,0.67908314,129.55,129.52,3.09312574]
[1767348591445,14.08,129.56,129.53,3.09312574]
[1767348591812,14.75908314,129.56,129.53,3.09312574]
[1767348592533,14.75908314,129.56,129.53,3.89312574]
[1767348593137,14.75908314,129.56,129.53,0.8]
[1767348593317,14.75908314,129.56,129.53,3.89312574]
[1767348593919,14.75908314,129.56,129.54,3.09312574]
[1767348594318,14.75908314,129.56,129.53,3.89312574]
[1767348595136,14.75908314,129.58,129.54,3.09312574]
[1767348595435,14.75908314,129.58,129.55,3.09312574]
[1767348596318,0.69250211,129.57,129.55,3.09312574]
[1767348596610,14.08,129.58,129.55,3.09312574]
[1767348596815,14.08,129.58,129.56,3.09312574]
[1767348597224,0.69250211,129.59,129.56,3.09312574]
[1767348597430,6.47749424,129.58,129.56,3.09312574]
[1767348597641,0.69250211,129.58,129.56,3.09312574]
[1767348598827,21.79671281,129.59,129.53,1.57202192]
[1767348599026,0.69250211,129.54,129.5,7.72166808]
[1767348599214,0.69250211,129.54,129.5,3.09312574]
[1767348600034,14.77250211,129.54,129.5,3.09312574]
[1767348600421,14.08,129.54,129.51,3.09312574]
[1767348600821,14.77250211,129.54,129.51,3.09312574]
[1767348601126,14.77250211,129.54,129.52,3.09312574]
[1767348601431,14.77250211,129.54,129.5,7.72171349]
[1767348601612,14.77250211,129.54,129.51,3.09312574]
[1767348601812,14.77250211,129.54,129.5,7.72171349]
[1767348602008,0.69250211,129.53,129.49,7.72234441]
[1767348602222,0.69250211,129.53,129.51,7.72109673]
[1767348602418,14.08,129.53,129.51,3.09312574]
[1767348602616,14.08,129.53,129.49,20.10607133]
[1767348602830,14.08,129.53,129.51,3.09312574]
[1767348603035,14.08,129.53,129.49,0.8]
[1767348603327,0.69250211,129.52,129.49,3.89312574]
[1767348603527,0.69250211,129.52,129.49,0.8]
[1767348603724,0.69250211,129.5,129.46,3.09312574]
[1767348603922,0.69250211,129.5,129.47,3.09312574]
[1767348604123,14.77250211,129.5,129.48,3.09312574]
[1767348606321,0.69250211,129.52,129.49,3.09312574]
[1767348606641,0.66250211,129.52,129.5,3.09312574]
[1767348607919,0.66250211,129.52,129.48,7.72310657]
[1767348608249,0.66250211,129.52,129.49,3.09312574]
[1767348608441,7.72088389,129.52,129.49,3.09312574]
[1767348608657,0.69250211,129.51,129.48,3.09312574]
[1767348608824,0.69250211,129.5,129.47,3.09312574]
[1767348610030,0.69250211,129.5,129.45,21.82498933]
[1767348610237,0.69250211,129.5,129.47,3.09312574]
[1767348611220,0.69250211,129.5,129.45,21.82498933]
[1767348611550,0.66250211,129.5,129.47,3.09312574]
[1767348611755,14.08,129.51,129.49,3.15812574]
[1767348611929,4.0332359,129.55,129.5,3.09312574]
[1767348612259,17.17312574,129.56,129.52,3.09312574]
[1767348612422,5.76940574,129.55,129.52,3.09312574]
[1767348612624,17.17312574,129.56,129.52,3.09312574]
[1767348612953,13.48852032,129.55,129.52,3.09312574]
[1767348613139,3.09312574,129.56,129.52,3.09312574]
[1767348613140,14.08,129.56,129.52,3.09312574]
[1767348613346,14.77250211,129.56,129.52,7.72068932]
[1767348613663,14.77250211,129.56,129.54,3.09312574]
[1767348614029,7.71808318,129.57,129.52,7.72068932]
[1767348614030,0.69250211,129.58,129.55,3.09312574]
[1767348614240,0.69250211,129.58,129.52,7.78568932]
[1767348614435,0.69250211,129.58,129.55,3.09312574]
[1767348614645,0.69250211,129.58,129.55,8.61488821]
[1767348615344,0.69250211,129.58,129.55,7.71894932]
[1767348615547,0.69250211,129.6,129.57,8.61488821]
[1767348615739,0.69250211,129.6,129.58,8.61488821]
[1767348618147,0.69250211,129.6,129.59,8.61488821]
[1767348618338,14.77250211,129.62,129.59,8.61488821]
[1767348618538,0.69250211,129.61,129.59,8.61488821]
[1767348619338,14.77250211,129.62,129.6,8.61488821]
[1767348619738,8.40643738,129.64,129.61,8.61488821]
[1767348620129,8.40643738,129.64,129.58,7.78219759]
[1767348620130,0.69250211,129.63,129.58,7.78219759]
[1767348620361,0.69250211,129.63,129.57,7.71756016]
[1767348620546,0.69250211,129.63,129.6,8.61488821]
[1767348621865,0.69250211,129.62,129.59,8.61488821]
[1767348622055,0.69250211,129.61,129.58,8.61488821]
[1767348622855,0.69250211,129.61,129.59,8.61488821]
[1767348623057,8.40611985,129.65,129.6,8.61488821]
[1767348623257,0.69250211,129.64,129.62,7.16488821]
[1767348623559,0.69250211,129.63,129.6,8.61488821]
[1767348624257,0.69250211,129.63,129.59,0.065]
[1767348624438,9.30739032,129.63,129.59,8.67988821]
[1767348624635,0.69250211,129.63,129.6,5.29815542]
[1767348625064,0.69250211,129.62,129.57,0.68678455]
[1767348625263,5.99065753,129.62,129.58,5.29815542]
[1767348625441,13.70567151,129.62,129.57,0.68678455]
[1767348625863,13.70567151,129.62,129.58,5.29815542]
[1767348626240,8.40751609,129.62,129.58,5.29815542]
[1767348626446,8.40751609,129.62,129.59,5.29815542]
[1767348627036,0.67939039,129.61,129.58,5.29815542]
[1767348627537,0.67939039,129.6,129.55,0.77190274]
[1767348627742,0.67939039,129.58,129.54,5.99128543]
[1767348628736,0.67939039,129.58,129.55,5.29815542]
[1767348630133,0.67939039,129.58,129.56,5.29815542]
[1767348631360,21.79632602,129.6,129.56,5.29815542]
[1767348631555,22.47571641,129.6,129.57,5.29815542]
[1767348632364,14.75939039,129.6,129.58,5.29815542]
[1767348632940,0.67939039,129.6,129.58,5.29815542]
[1767348633467,8.39544528,129.6,129.57,5.29815542]
[1767348633849,0.67939039,129.6,129.57,5.29815542]
[1767348634168,0.67939039,129.61,129.58,5.29815542]
[1767348634678,8.3912744,129.67,129.61,0.69313001]
[1767348634843,5.74516567,129.66,129.64,1.97757237]
[1767348635040,22.4712744,129.67,129.64,1.97757237]
[1767348635238,0.67939039,129.66,129.64,1.97757237]
[1767348635439,8.3921843,129.66,129.64,1.97757237]
[1767348635643,8.3921843,129.66,129.62,0.69313001]
[1767348635644,0.67939039,129.65,129.62,1.97757237]
[1767348635858,0.67939039,129.65,129.6,0.69313001]
[1767348635859,0.67939039,129.65,129.61,1.97757237]
[1767348636461,0.67939039,129.64,129.61,1.97757237]
[1767348636864,26.99399088,129.66,129.61,1.97757237]
[1767348637058,8.39074192,129.68,129.65,1.97757237]
[1767348637369,8.39074192,129.68,129.66,1.97757237]
[1767348637574,8.39074192,129.68,129.65,1.97757237]
[1767348637770,8.39074192,129.68,129.64,2.67070238]
[1767348638258,0.67939039,129.67,129.64,1.97757237]
[1767348638448,0.67939039,129.67,129.64,5.2939222]
[1767348638770,0.67939039,129.67,129.63,5.98705221]
[1767348639560,8.39141124,129.67,129.63,5.98705221]
[1767348640667,13.68533344,129.67,129.63,0.69313001]
[1767348640871,0.67939039,129.65,129.61,0.69313001]
[1767348641070,0.67939039,129.65,129.61,5.98705221]
[1767348641263,0.67939039,129.63,129.59,5.98705221]
[1767348641578,8.39388451,129.63,129.59,5.98705221]
[1767348641873,8.39388451,129.63,129.58,5.2939222]
[1767348641874,0.67939039,129.62,129.58,5.2939222]
[1767348642251,5.97331259,129.62,129.58,5.2939222]
[1767348642576,5.2939222,129.6,129.53,7.72007648]
[1767348642777,5.97331259,129.6,129.56,5.2939222]
[1767348642965,0.67939039,129.6,129.56,5.2939222]
[1767348643364,0.67939039,129.6,129.52,0.77208153]
[1767348643561,13.69167384,129.57,129.52,0.69313001]
[1767348643760,7.71836125,129.57,129.53,5.2939222]
[1767348643974,13.69059982,129.58,129.53,0.69313001]
[1767348644161,13.69059982,129.58,129.53,5.98705221]
[1767348644479,0.67939039,129.57,129.53,5.98705221]
[1767348644653,0.67939039,129.57,129.54,5.2939222]
[1767348644976,7.71728723,129.58,129.54,0.69313001]
[1767348645164,13.69059982,129.58,129.54,0.69313001]
[1767348645476,13.69059982,129.58,129.53,5.2939222]
[1767348645477,5.97331259,129.57,129.53,5.2939222]
[1767348645657,13.69160446,129.57,129.52,0.69313001]
[1767348645981,13.69160446,129.57,129.52,5.98705221]
[1767348646277,8.39768226,129.57,129.53,0.69313001]
[1767348646458,8.39768226,129.57,129.53,5.98705221]
[1767348646976,0.67939039,129.57,129.53,0.69313001]
[1767348647156,0.67939039,129.56,129.49,0.69313001]
[1767348647356,5.2939222,129.55,129.51,5.2939222]
[1767348647562,13.6929349,129.55,129.51,5.98705221]
[1767348647763,8.3990127,129.55,129.51,5.98705221]
[1767348648175,8.3990127,129.55,129.52,5.2939222]
[1767348648474,8.3990127,129.55,129.51,5.98705221]
[1767348650081,8.3990127,129.55,129.52,5.2939222]
[1767348650886,8.3990127,129.55,129.51,0.69313001]
[1767348651064,0.67939039,129.54,129.52,5.2939222]
[1767348651258,0.67939039,129.54,129.49,0.69313001]
[1767348651460,0.67939039,129.54,129.51,5.2939222]
[1767348652287,8.39806257,129.56,129.53,5.2939222]
[1767348652483,8.39806257,129.56,129.52,5.98705221]
[1767348652689,13.69198477,129.56,129.52,5.98705221]
[1767348652889,7.7195371,129.55,129.51,5.2939222]
[1767348653098,0.67939039,129.54,129.51,5.2939222]
[1767348653669,0.64939039,129.54,129.51,5.2939222]
[1767348654077,7.7195371,129.55,129.52,5.2939222]
[1767348654491,7.7195371,129.55,129.51,0.69313001]
[1767348654801,19.3739222,129.57,129.53,5.2939222]
[1767348655091,21.79825818,129.57,129.53,5.98705221]
[1767348655266,21.79825818,129.57,129.48,34.50720617]
[1767348655267,14.08,129.57,129.54,5.98705221]
[1767348655461,14.08,129.57,129.54,0.69313001]
[1767348655664,14.08,129.57,129.54,5.98705221]
[1767348656360,21.79790539,129.57,129.54,5.98705221]
[1767348656782,21.79790539,129.57,129.54,0.69313001]
[1767348656989,22.48211322,129.57,129.54,0.69313001]
[1767348657192,22.48211322,129.57,129.54,5.98705221]
[1767348657568,22.48211322,129.57,129.54,0.69313001]
[1767348657767,0.68420783,129.56,129.51,0.67042788]
[1767348657987,0.68420783,129.56,129.49,7.72260406]
[1767348657988,0.68420783,129.56,129.49,0.67042788]
[1767348658292,0.68420783,129.54,129.5,5.96435008]
[1767348658487,0.68420783,129.54,129.51,1.98082634]
[1767348658793,14.76420783,129.55,129.51,2.65125422]
[1767348659369,14.76420783,129.55,129.51,0.67042788]
[1767348659566,14.76420783,129.55,129.51,2.65125422]
[1767348659761,22.4834293,129.55,129.51,2.65125422]
[1767348659986,0.68420783,129.54,129.51,1.98082634]
[1767348660365,14.08,129.55,129.53,1.98082634]
[1767348660563,21.79908651,129.55,129.52,2.65125422]
[1767348660771,24.46412068,129.55,129.51,2.65125422]
[1767348661069,22.48329434,129.55,129.52,1.98082634]
[1767348661571,0.68420783,129.53,129.5,1.98082634]
[1767348661790,8.40443652,129.53,129.5,1.98082634]
[1767348664101,0.68420783,129.53,129.51,1.98082634]
[1767348664410,14.76420783,129.57,129.52,2.65125422]
[1767348664585,14.76420783,129.57,129.52,0.67042788]
[1767348665093,14.76420783,129.57,129.54,1.98082634]
[1767348666226,22.4825691,129.57,129.54,1.98082634]
[1767348666395,21.79836127,129.57,129.54,1.98082634]
[1767348666596,22.4825691,129.57,129.54,1.98082634]
[1767348666796,0.68420783,129.56,129.53,1.98082634]
[1767348667112,0.68420783,129.56,129.54,1.98082634]
[1767348667621,0.68420783,129.56,129.53,0.67042788]
[1767348667908,0.68420783,129.56,129.54,1.98082634]
[1767348668114,8.40290574,129.56,129.54,1.98082634]
[1767348668691,8.40290574,129.56,129.53,1.98082634]
[1767348669021,7.71798424,129.57,129.54,2.65125422]
[1767348669394,8.40219207,129.57,129.52,0.67042788]
[1767348669718,8.40219207,129.57,129.54,1.98082634]
[1767348670514,0.68420783,129.56,129.53,1.98082634]
[1767348670719,2.66503417,129.56,129.52,1.98082634]
[1767348670899,0.68420783,129.56,129.52,1.98082634]
[1767348671913,2.66503417,129.56,129.52,1.98082634]
[1767348672114,7.7190274,129.55,129.52,1.98082634]
[1767348672421,27.0165959,129.55,129.52,1.98082634]
[1767348672594,0.68420783,129.53,129.49,2.65125422]
[1767348672796,0.68420783,129.52,129.49,1.98082634]
[1767348673504,0.68420783,129.52,129.49,2.65125422]
[1767348674221,0.68420783,129.52,129.48,2.18082634]
[1767348674222,8.40513379,129.52,129.48,2.18082634]
[1767348674396,8.40513379,129.52,129.48,0.2]
[1767348674397,0.68420783,129.51,129.48,0.2]
[1767348675600,2.66503417,129.51,129.48,0.2]
[1767348676203,0.68420783,129.48,129.44,0.2]
[1767348676404,16.74503417,129.47,129.44,0.2]
[1767348676802,14.76420783,129.47,129.44,0.2]
[1767348677008,14.08,129.47,129.44,0.87042788]
[1767348677210,14.08,129.47,129.45,0.67042788]
[1767348677398,14.08,129.47,129.44,0.2]
[1767348677808,16.74503417,129.47,129.44,0.2]
[1767348678216,7.72439363,129.46,129.44,0.2]
[1767348678723,10.3894278,129.46,129.44,0.2]
[1767348678927,24.4894278,129.46,129.44,0.2]
[1767348679332,0.68420783,129.44,129.41,17.59411219]
[1767348679630,0.68420783,129.41,129.39,0.2]
[1767348679836,14.78420783,129.41,129.37,2.18082634]
[1767348680008,14.78420783,129.41,129.37,2.85125422]
[1767348680208,8.41198555,129.41,129.37,0.87042788]
[1767348680502,0.68420783,129.4,129.37,0.2]
[1767348680727,20.10180458,129.4,129.37,0.2]
[1767348681419,14.1,129.4,129.37,6.18802463]
[1767348681605,14.1,129.4,129.37,0.87042788]
[1767348681820,14.1,129.41,129.38,0.67042788]
[1767348682024,14.1,129.41,129.38,5.31759675]
[1767348682324,14.1,129.41,129.39,0.67042788]
[1767348682517,7.72680821,129.42,129.39,0.67042788]
[1767348682721,21.82680821,129.42,129.39,0.67042788]
[1767348683235,21.82680821,129.42,129.38,0.67042788]
[1767348683624,21.82680821,129.42,129.38,5.31759675]
[1767348683939,14.1,129.44,129.41,0.29500001]
[1767348684232,0.68420783,129.46,129.41,0.29500001]
[1767348684233,27.14303739,129.45,129.41,0.29500001]
[1767348684429,5.72479852,129.44,129.41,0.29500001]
[1767348684609,27.14303739,129.45,129.41,0.29500001]
[1767348684809,5.72479701,129.44,129.41,0.29500001]
[1767348685009,13.04344344,129.44,129.37,7.92956848]
[1767348685232,5.72930369,129.43,129.39,5.61259676]
[1767348685436,13.04344344,129.44,129.39,5.61259676]
[1767348685744,5.72720857,129.43,129.39,5.61259676]
[1767348685922,13.04344344,129.44,129.39,5.61259676]
[1767348686125,5.72720813,129.43,129.39,5.61259676]
[1767348686334,13.04344344,129.44,129.39,5.61259676]
[1767348686540,5.72835403,129.43,129.39,8.93091595]
[1767348686721,5.43335402,129.42,129.4,8.93091595]
[1767348686919,31.14532096,129.45,129.4,8.93091595]
[1767348688541,31.14532096,129.45,129.4,0.29500001]
[1767348688736,31.14532096,129.45,129.4,8.93091595]
[1767348688927,31.14532096,129.45,129.4,0.29500001]
[1767348689237,8.38403674,129.44,129.4,8.63591594]
[1767348689432,0.65829934,129.44,129.41,8.63591594]
[1767348689642,22.48336925,129.45,129.39,7.72831639]
[1767348689819,22.48336925,129.45,129.41,8.63591594]
[1767348690014,0.65829934,129.44,129.4,8.63591594]
[1767348690410,0.65829934,129.44,129.38,7.72892456]
[1767348690611,0.65829934,129.44,129.4,8.63591594]
[1767348691347,0.65829934,129.44,129.41,8.63591594]
[1767348692335,22.48351476,129.45,129.39,7.72853741]
[1767348692519,22.48351476,129.45,129.41,8.63591594]
[1767348693525,14.75829934,129.45,129.41,8.63591594]
[1767348693848,14.75829934,129.45,129.42,8.63591594]
[1767348694050,0.65829934,129.44,129.4,8.63591594]
[1767348694732,0.65829934,129.44,129.39,8.63591594]
[1767348694934,0.65829934,129.44,129.38,7.72916988]
[1767348695130,8.38405107,129.44,129.39,8.63591594]
[1767348695830,0.65829934,129.43,129.4,8.63591594]
[1767348697051,8.3845638,129.43,129.39,8.63591594]
[1767348697237,0.65829934,129.42,129.38,8.63591594]
[1767348698452,0.65829934,129.42,129.39,8.63591594]
[1767348698634,0.65829934,129.42,129.37,83.22974633]
[1767348698952,5.72446323,129.41,129.39,8.63591594]
[1767348699154,0.65829934,129.42,129.39,8.63591594]
[1767348699336,5.72445583,129.41,129.39,8.63591594]
[1767348699529,0.65829934,129.42,129.39,8.63591594]
[1767348699741,5.72417969,129.41,129.39,8.63591594]
[1767348699939,0.65829934,129.42,129.39,8.63591594]
[1767348700541,0.65829934,129.41,129.38,8.63591594]
[1767348700848,6.38233387,129.41,129.37,70.03591594]
[1767348701049,0.65829934,129.41,129.38,8.63591594]
[1767348702238,21.82643881,129.43,129.39,8.63591594]
[1767348702459,5.7271438,129.42,129.39,3.10000782]
[1767348702651,22.48473815,129.43,129.39,3.10000782]
[1767348702838,5.7268548,129.42,129.39,3.10000782]
[1767348703039,0.65829934,129.42,129.39,3.10000782]
[1767348703441,22.48473815,129.43,129.4,3.10000782]
[1767348703657,5.72749666,129.42,129.4,3.10000782]
[1767348703950,22.48473815,129.43,129.39,3.10000782]
[1767348704149,5.72749818,129.42,129.39,3.10000782]
[1767348704349,22.48473815,129.43,129.39,3.10000782]
[1767348704663,22.48473815,129.43,129.37,7.92964271]
[1767348704664,0.65829934,129.44,129.41,3.10000782]
[1767348704842,0.65829934,129.44,129.38,0.77291698]
[1767348705044,8.38396999,129.44,129.38,0.77291698]
[1767348705242,0.65829934,129.42,129.38,3.10000782]
[1767348708064,0.65829934,129.42,129.37,25.12973001]
[1767348708849,7.72652171,129.43,129.39,3.10000782]
[1767348709168,6.38916098,129.42,129.37,7.9294953]
[1767348709370,0.65829934,129.42,129.38,3.10000782]
[1767348709554,0.65829934,129.42,129.39,3.10000782]
[1767348710946,33.4129227,129.45,129.37,7.9294953]
[1767348710947,0.65829934,129.44,129.4,3.10000782]
[1767348711280,5.73475842,129.43,129.41,3.10000782]
[1767348711564,0.65829934,129.44,129.41,3.10000782]
[1767348711760,5.73764059,129.43,129.41,3.10000782]
[1767348711960,0.65829934,129.44,129.41,3.10000782]
[1767348712151,5.73763907,129.43,129.41,3.10000782]
[1767348712354,0.65829934,129.44,129.41,3.10000782]
[1767348712660,5.74076185,129.43,129.41,3.10000782]
[1767348712878,14.1,129.46,129.38,0.77291698]
[1767348712879,8.38274875,129.46,129.42,3.10000782]
[1767348713050,5.74060727,129.45,129.42,3.10000782]
[1767348713375,5.74060727,129.45,129.39,7.72857253]
[1767348713376,5.74060727,129.44,129.39,7.72857253]
[1767348713560,8.38329374,129.45,129.41,3.10000782]
[1767348713866,5.74452451,129.44,129.41,3.10000782]
[1767348714068,5.74452451,129.43,129.41,3.10000782]
[1767348714248,8.38329374,129.45,129.41,3.10000782]
[1767348714565,5.74953399,129.44,129.41,3.10000782]
[1767348714763,5.74953399,129.43,129.41,3.10000782]
[1767348714957,8.38329374,129.45,129.41,3.10000782]
[1767348715158,5.74953094,129.44,129.41,3.10000782]
[1767348715357,5.74953094,129.43,129.41,3.10000782]
[1767348715570,8.38329374,129.45,129.41,3.10000782]
[1767348715571,5.74953094,129.42,129.41,3.10000782]
[1767348715760,14.1,129.46,129.42,5.74953094]
[1767348715952,14.1,129.46,129.44,3.10000782]
[1767348717358,14.81721115,129.46,129.41,7.72714257]
[1767348717562,14.1,129.46,129.44,3.10000782]
[1767348718061,7.72384167,129.47,129.44,3.10000782]
[1767348718262,0.71721115,129.46,129.43,3.10000782]
[1767348718855,0.71721115,129.46,129.44,3.10000782]
[1767348719371,8.44167956,129.46,129.43,3.10000782]
[1767348720067,0.71721115,129.45,129.42,3.10000782]
[1767348720648,0.71721115,129.45,129.4,3.10000782]
[1767348720844,0.71721115,129.44,129.4,3.10000782]
[1767348721948,0.71721115,129.43,129.38,0.77291698]
[1767348722148,0.71721115,129.43,129.37,22.02950697]
[1767348722149,0.71721115,129.43,129.39,3.10000782]
[1767348722362,0.71721115,129.42,129.37,0.2]
[1767348722650,0.71721115,129.42,129.38,3.10000782]
[1767348722850,0.71721115,129.42,129.37,0.2]
[1767348723169,0.71721115,129.42,129.38,3.10000782]
[1767348723348,0.71721115,129.42,129.37,0.2]
[1767348723745,0.71721115,129.41,129.37,3.30000782]
[1767348723963,0.71721115,129.41,129.38,3.10000782]
[1767348724475,8.44447511,129.42,129.38,3.10000782]
[1767348725569,0.71721115,129.42,129.39,3.10000782]
[1767348727276,0.71721115,129.42,129.37,69.12972136]
[1767348727453,21.82439363,129.46,129.38,7.72876185]
[1767348727653,0.71721115,129.44,129.39,3.10000782]
[1767348727867,6.501931,129.43,129.39,3.10000782]
[1767348728077,6.501931,129.42,129.37,7.92935673]
[1767348728260,5.78471985,129.41,129.38,3.10000782]
[1767348728773,5.78471985,129.4,129.37,0.2]
[1767348729150,5.78471985,129.4,129.37,3.30000782]
[1767348729360,5.78471985,129.4,129.38,3.10000782]
[1767348729790,0.71721115,129.41,129.39,3.10000782]
[1767348730280,0.71721115,129.42,129.38,3.10000782]
[1767348730482,5.78480412,129.41,129.38,3.10000782]
[1767348730655,0.71721115,129.42,129.38,3.10000782]
[1767348730853,5.78509451,129.41,129.38,3.10000782]
[1767348731058,0.71721115,129.42,129.38,3.10000782]
[1767348731256,5.78509451,129.41,129.38,3.10000782]
[1767348731481,0.71721115,129.42,129.37,7.92963366]
[1767348731688,5.78492931,129.41,129.38,3.10000782]
[1767348731878,0.71721115,129.42,129.38,3.10000782]
[1767348732068,5.78492931,129.41,129.38,3.10000782]
[1767348732381,0.71721115,129.42,129.37,7.92963366]
[1767348732566,5.78476194,129.41,129.38,3.10000782]
[1767348732763,0.71721115,129.42,129.38,3.10000782]
[1767348732983,0.71721115,129.42,129.37,0.2]
[1767348732984,0.71721115,129.4,129.37,0.2]
[1767348733194,6.50197309,129.39,129.37,0.2]
[1767348733361,0.71721115,129.39,129.37,0.2]
[1767348734961,5.78319823,129.38,129.37,0.2]
[1767348735183,6.50040938,129.38,129.36,0.2]
[1767348735372,0.71721115,129.38,129.36,0.2]
[1767348735772,0.71721115,129.41,129.36,0.2]
[1767348736087,5.78219405,129.4,129.37,3.30000782]
[1767348736288,0.71721115,129.41,129.37,0.2]
[1767348736466,5.78122477,129.4,129.37,3.30000782]
[1767348736779,0.71721115,129.41,129.37,3.10000782]
[1767348736987,6.49847577,129.4,129.37,3.10000782]
[1767348737178,0.71721115,129.4,129.37,3.10000782]
[1767348737397,0.71721115,129.4,129.36,3.30000782]
[1767348738392,5.78100102,129.39,129.36,3.30000782]
[1767348738584,0.71721115,129.4,129.36,3.30000782]
[1767348738765,6.49841393,129.39,129.36,0.2]
[1767348739097,0.71721115,129.39,129.36,0.2]
[1767348739283,0.71721115,129.39,129.36,3.30000782]
[1767348739796,0.71721115,129.39,129.37,3.10000782]
[1767348740182,10.82747342,129.41,129.37,3.10000782]
[1767348740493,6.49785946,129.4,129.37,3.10000782]
[1767348740710,0.71721115,129.4,129.37,3.10000782]
[1767348741495,0.71721115,129.4,129.36,64.50000782]
[1767348741680,0.71721115,129.38,129.36,61.4]
[1767348741876,0.71721115,129.38,129.36,0.2]
[1767348743001,0.71721115,129.38,129.36,3.30000782]
[1767348743510,0.71721115,129.38,129.36,0.2]
[1767348744095,0.71721115,129.37,129.35,0.2]
[1767348744277,6.49748214,129.37,129.35,0.2]
[1767348744480,0.71721115,129.37,129.35,0.2]
[1767348747182,0.71721115,129.37,129.35,3.30000782]
[1767348747979,7.72978247,129.37,129.32,0.2]
[1767348748178,7.72978247,129.37,129.33,3.10000782]
[1767348748179,0.71035052,129.36,129.33,3.10000782]
[1767348748591,0.71035052,129.36,129.32,2.786065]
[1767348748895,0.71035052,129.36,129.33,1.986065]
[1767348751374,0.71035052,129.36,129.32,0.8]
[1767348751576,0.71035052,129.34,129.32,0.2]
[1767348751985,0.71035052,129.34,129.32,2.186065]
[1767348752192,14.81035052,129.36,129.33,1.986065]
[1767348752393,0.71035052,129.35,129.33,1.986065]
[1767348752595,0.71035052,129.35,129.32,2.186065]
[1767348752796,0.71035052,129.35,129.32,0.2]
[1767348752995,0.71035052,129.35,129.32,2.186065]
[1767348753203,0.71035052,129.34,129.32,0.2]
[1767348753507,0.71035052,129.34,129.32,2.186065]
[1767348753687,0.71035052,129.35,129.32,2.186065]
[1767348754097,0.71035052,129.35,129.32,0.2]
[1767348754482,21.83039425,129.36,129.32,2.786065]
[1767348754786,14.1,129.36,129.34,1.986065]
[1767348754985,14.1,129.37,129.34,0.6]
[1767348755192,14.81035052,129.37,129.34,0.6]
[1767348755402,16.79641552,129.37,129.34,0.6]
[1767348756100,16.79641552,129.37,129.33,2.586065]
[1767348756300,16.79641552,129.37,129.33,0.6]
[1767348756503,24.52622997,129.37,129.33,2.586065]
[1767348756699,10.42622997,129.37,129.33,2.586065]
[1767348757305,8.44016497,129.37,129.33,2.586065]
[1767348757689,8.44016497,129.37,129.33,1.986065]
[1767348757892,8.44016497,129.37,129.33,2.586065]
[1767348758290,8.44016497,129.37,129.33,0.6]
[1767348758605,8.44016497,129.37,129.33,2.586065]
[1767348759111,0.71035052,129.36,129.32,2.186065]
[1767348759303,0.71035052,129.35,129.32,2.186065]
[1767348759524,2.69641552,129.35,129.32,0.2]
[1767348759812,0.71035052,129.35,129.32,2.186065]